bitfinex-derivatives/quotes_BTCF0:USTF0_20250117
["timestamp","ask_amount","ask_price","bid_price","bid_amount"]
[1737134014516,0.3608,104890.0,104880.0,0.13485384]
[1737134018534,0.408447,104890.0,104880.0,0.13485384]
[1737134020131,0.408447,104890.0,104880.0,0.04765]
[1737134020332,0.408447,104890.0,104880.0,0.13485384]
[1737134020735,0.408447,104890.0,104880.0,0.04765]
[1737134021930,0.408447,104890.0,104880.0,0.13485384]
[1737134022533,0.408447,104890.0,104880.0,0.15074307]
[1737134025034,0.3608,104890.0,104880.0,0.23794691]
[1737134025333,0.87271048,104910.0,104900.0,0.047643]
[1737134025732,0.87271048,104910.0,104900.0,0.13484684]
[1737134026140,0.64584305,104910.0,104900.0,0.13484684]
[1737134027132,0.64584305,104910.0,104900.0,0.047643]
[1737134027332,0.63586449,104910.0,104900.0,0.047643]
[1737134027941,0.047647,104900.0,104890.0,0.047646]
[1737134028130,0.60335084,104900.0,104890.0,0.047646]
[1737134028533,0.516147,104900.0,104890.0,0.047646]
[1737134029440,0.567947,104900.0,104890.0,0.047646]
[1737134029636,0.65515084,104900.0,104890.0,0.047646]
[1737134031840,0.65515084,104900.0,104880.0,0.01588923]
[1737134032046,0.49565184,104890.0,104880.0,0.047652]
[1737134032638,0.66265926,104890.0,104880.0,0.047652]
[1737134033741,0.60742864,104890.0,104880.0,0.047652]
[1737134034555,0.047656,104880.0,104870.0,0.0196926]
[1737134034846,0.047661,104870.0,104860.0,0.00143041]
[1737134035152,0.65716484,104870.0,104860.0,0.00143041]
[1737134035336,0.047673,104850.0,104840.0,0.047674]
[1737134035643,0.85647684,104850.0,104840.0,0.06728876]
[1737134035843,0.85647684,104850.0,104840.0,0.01961476]
[1737134036041,0.80880384,104850.0,104830.0,0.07910774]
[1737134036246,0.49567884,104840.0,104830.0,0.07910774]
[1737134036448,0.49567884,104840.0,104830.0,0.03143074]
[1737134036745,0.54987884,104840.0,104830.0,0.03143074]
[1737134037241,0.462675,104840.0,104830.0,0.03143074]
[1737134037842,0.462675,104840.0,104830.0,0.07910974]
[1737134038547,0.94058213,104840.0,104830.0,0.07910974]
[1737134040346,0.88638213,104840.0,104830.0,0.07910974]
[1737134040542,0.83870713,104840.0,104830.0,0.21020556]
[1737134040850,0.83870713,104840.0,104830.0,0.07910974]
[1737134041050,0.63972649,104840.0,104830.0,0.07910974]
[1737134041351,0.6166548,104840.0,104830.0,0.21020556]
[1737134041651,0.2558548,104840.0,104830.0,0.26080556]
[1737134041854,0.6166548,104840.0,104830.0,0.26080556]
[1737134042150,0.6166548,104840.0,104830.0,0.12970974]
[1737134042346,0.3608,104840.0,104830.0,0.12970974]
[1737134043155,0.408475,104840.0,104830.0,0.12970974]
[1737134043355,0.408475,104840.0,104830.0,0.07910974]
[1737134047546,0.53957082,104840.0,104830.0,0.03]
[1737134047749,0.095362,104830.0,104800.0,0.147692]
[1737134048053,0.53958382,104810.0,104800.0,0.1]
[1737134048446,0.408488,104810.0,104800.0,0.27878882]
[1737134049360,0.3608,104810.0,104800.0,0.27878882]
[1737134050054,0.408488,104810.0,104800.0,0.1673893]
[1737134053357,0.3608,104810.0,104800.0,0.42958094]
[1737134053562,0.3608,104810.0,104800.0,0.29848512]
[1737134053958,0.3608,104810.0,104800.0,1.79848512]
[1737134054465,0.3608,104810.0,104800.0,0.29848512]
[1737134057366,0.3608,104810.0,104800.0,0.25481853]
[1737134062359,0.3608,104820.0,104800.0,0.25481853]
[1737134062566,0.70094305,104830.0,104810.0,0.13511723]
[1737134062769,0.64584305,104830.0,104820.0,0.27504246]
[1737134063164,0.64584305,104830.0,104820.0,0.18761323]
[1737134063467,0.67434736,104830.0,104820.0,0.18761323]
[1737134064573,0.90203308,104830.0,104820.0,0.18761323]
[1737134065272,0.64565952,104830.0,104820.0,0.18761323]
[1737134066366,0.64565952,104830.0,104820.0,0.20793143]
[1737134071869,0.84529327,104830.0,104820.0,0.20793143]
[1737134074674,0.56043375,104830.0,104820.0,0.20793143]
[1737134078173,0.56043375,104830.0,104820.0,0.29536066]
[1737134080570,0.3608,104830.0,104820.0,0.29536066]
[1737134081076,0.04499059,104840.0,104830.0,0.047679]
[1737134081285,0.01289796,104840.0,104830.0,0.13510823]
[1737134081771,0.24105081,104840.0,104830.0,0.13510823]
[1737134082979,0.01289796,104840.0,104830.0,0.13510823]
[1737134087375,0.4132,104850.0,104830.0,0.54358723]
[1737134087681,0.4132,104850.0,104840.0,0.13510423]
[1737134088977,0.4982,104860.0,104850.0,0.04767]
[1737134089181,0.4982,104860.0,104850.0,0.13509923]
[1737134091881,0.545865,104860.0,104850.0,0.04767]
[1737134092676,0.545865,104860.0,104850.0,0.13509923]
[1737134092882,0.4982,104860.0,104850.0,0.13509923]
[1737134093387,0.83142204,104860.0,104850.0,0.13509923]
[1737134093583,0.83142204,104860.0,104850.0,0.1601104]
[1737134095785,0.78375704,104860.0,104850.0,0.1601104]
[1737134101088,0.36835704,104860.0,104850.0,0.24753963]
[1737134101288,0.21956675,104870.0,104860.0,0.047665]
[1737134101490,0.32239017,104880.0,104870.0,0.047661]
[1737134101684,0.16874224,104880.0,104870.0,2.18701946]
[1737134101885,0.16874224,104880.0,104870.0,0.68701946]
[1737134102287,0.411,104900.0,104870.0,0.68701946]
[1737134102493,0.411,104900.0,104890.0,0.13508123]
[1737134102994,0.411,104900.0,104890.0,1.63508123]
[1737134104080,0.458647,104900.0,104890.0,1.63508123]
[1737134104496,0.3608,104900.0,104890.0,1.63508123]
[1737134107494,0.3608,104900.0,104890.0,0.13508123]
[1737134107901,0.6723686,104910.0,104900.0,0.047647]
[1737134108102,0.6723686,104910.0,104900.0,0.13507623]
[1737134108792,0.41653028,104910.0,104900.0,0.13507623]
[1737134110498,0.46417328,104910.0,104900.0,0.047647]
[1737134110698,0.55160251,104910.0,104900.0,0.047647]
[1737134111409,0.46417328,104910.0,104900.0,0.047647]
[1737134112494,0.047647,104900.0,104890.0,0.07932978]
[1737134112707,0.54667623,104900.0,104890.0,0.07932978]
[1737134113006,0.459247,104900.0,104890.0,0.07932978]
[1737134115805,0.098447,104900.0,104890.0,0.16675901]
[1737134116006,0.50395951,104910.0,104900.0,0.047647]
[1737134116007,0.05573028,104910.0,104900.0,0.047647]
[1737134116210,0.4939,104920.0,104900.0,0.52438546]
[1737134116398,0.0797,104920.0,104910.0,0.22250146]
[1737134116707,0.03,104920.0,104910.0,1.72250146]
[1737134116921,0.03,104920.0,104910.0,0.58330146]
[1737134117620,0.03,104920.0,104910.0,0.49587223]
[1737134117819,0.03762,104920.0,104910.0,0.49587223]
[1737134118208,0.03762,104920.0,104910.0,0.58330146]
[1737134118814,0.04524,104920.0,104910.0,0.58330146]
[1737134120312,0.3608,104930.0,104910.0,0.58330146]
[1737134120523,0.32518406,104930.0,104920.0,0.32979646]
[1737134120719,0.32518406,104930.0,104920.0,0.29676723]
[1737134121523,0.33280406,104930.0,104920.0,0.29676723]
[1737134121713,0.34042406,104930.0,104920.0,0.29676723]
[1737134124121,0.01524,104930.0,104920.0,0.65756723]
[1737134124316,0.01524,104930.0,104920.0,0.74499646]
[1737134124517,0.90208178,104950.0,104940.0,0.047629]
[1737134124821,0.90208178,104950.0,104940.0,0.13505823]
[1737134125023,0.90208178,104950.0,104940.0,0.22248746]
[1737134125221,0.36222992,104950.0,104940.0,0.22248746]
[1737134125822,0.37746992,104950.0,104940.0,0.22248746]
[1737134126227,0.37604,104950.0,104940.0,0.22248746]
[1737134127723,0.37604,104950.0,104940.0,0.047629]
[1737134127911,0.475365,104950.0,104940.0,0.13505823]
[1737134129327,0.42774,104950.0,104940.0,0.13505823]
[1737134129524,0.475365,104950.0,104930.0,0.08742923]
[1737134129823,0.047634,104930.0,104920.0,0.047635]
[1737134130020,0.408434,104930.0,104920.0,0.07927636]
[1737134130222,0.510734,104930.0,104920.0,0.16670559]
[1737134130817,0.510734,104930.0,104920.0,0.11907059]
[1737134131014,0.047638,104920.0,104910.0,0.00142953]
[1737134131217,0.047643,104910.0,104900.0,0.13507423]
[1737134131412,0.408443,104910.0,104900.0,0.13507423]
[1737134132623,0.408443,104910.0,104900.0,0.16600518]
[1737134134027,0.3608,104910.0,104900.0,0.16600518]
[1737134135631,0.408443,104910.0,104900.0,0.16600518]
[1737134136021,0.408443,104910.0,104900.0,0.07857595]
[1737134136218,0.408443,104910.0,104900.0,0.16600518]
[1737134138631,0.49587223,104910.0,104900.0,0.03093095]
[1737134138831,0.49587223,104910.0,104880.0,0.047655]
[1737134138832,0.047652,104890.0,104880.0,0.047655]
[1737134139127,0.408452,104890.0,104880.0,0.047655]
[1737134139333,0.047659,104880.0,104870.0,0.04766]
[1737134139535,0.3608,104880.0,104860.0,0.44965938]
[1737134139728,0.047661,104870.0,104860.0,0.5243952]
[1737134142032,0.408461,104870.0,104860.0,0.1635952]
[1737134143237,0.49589023,104870.0,104860.0,0.02707382]
[1737134143438,0.513661,104870.0,104850.0,0.16384673]
[1737134143732,0.3608,104860.0,104850.0,0.13509823]
[1737134143933,0.408465,104860.0,104850.0,0.16151627]
[1737134146129,0.416085,104860.0,104850.0,0.16151627]
[1737134146332,0.36842,104860.0,104850.0,0.16151627]
[1737134146539,0.00762,104860.0,104850.0,0.6097455]
[1737134146834,0.00762,104860.0,104850.0,0.2489455]
[1737134147030,0.01524,104860.0,104850.0,0.16151627]
[1737134147539,0.37604,104860.0,104850.0,0.16151627]
[1737134147734,0.37604,104860.0,104850.0,0.2489455]
[1737134148038,0.37604,104860.0,104850.0,0.16151627]
[1737134148245,0.37604,104860.0,104850.0,0.2489455]
[1737134148543,0.37604,104860.0,104850.0,0.07408704]
[1737134148734,0.423705,104860.0,104850.0,0.07408704]
[1737134148935,0.423705,104860.0,104850.0,0.16151627]
[1737134150244,0.37604,104860.0,104850.0,0.16151627]
[1737134151242,0.423705,104860.0,104850.0,0.2489455]
[1737134151740,0.423705,104860.0,104850.0,0.16151627]
[1737134153235,0.423705,104860.0,104850.0,0.2489455]
[1737134153436,0.423705,104860.0,104850.0,0.16151627]
[1737134153636,0.37604,104860.0,104850.0,0.16151627]
[1737134153836,0.37604,104860.0,104850.0,0.2489455]
[1737134154243,0.37604,104860.0,104850.0,0.16151627]
[1737134157857,0.423705,104860.0,104850.0,0.16151627]
[1737134158240,0.37604,104860.0,104850.0,0.16151627]
[1737134160245,0.423705,104860.0,104850.0,0.07408704]
[1737134160450,0.51113423,104860.0,104840.0,0.047674]
[1737134160647,0.46367,104850.0,104840.0,0.13510323]
[1737134161247,0.416,104850.0,104840.0,0.13510323]
[1737134161452,0.3608,104850.0,104840.0,0.13510323]
[1737134161650,0.3608,104840.0,104810.0,0.16975849]
[1737134161850,0.94414246,104820.0,104810.0,0.16975849]
[1737134162548,0.99564246,104820.0,104810.0,0.16975849]
[1737134163060,0.047688,104810.0,104800.0,0.1]
[1737134163249,0.49591723,104810.0,104800.0,0.1]
[1737134163749,0.49591723,104810.0,104800.0,0.147693]
[1737134165457,0.518515,104820.0,104810.0,0.047688]
[1737134165950,0.157715,104820.0,104810.0,0.047688]
[1737134166156,0.11003,104820.0,104810.0,0.13511723]
[1737134166557,0.157714,104820.0,104810.0,0.13511723]
[1737134167161,0.165344,104820.0,104810.0,0.13511723]
[1737134169263,0.01526,104820.0,104810.0,0.13511723]
[1737134170550,0.062944,104820.0,104810.0,0.047688]
[1737134170757,0.01526,104820.0,104810.0,0.13511723]
[1737134170955,0.062944,104820.0,104810.0,0.13511723]
[1737134171456,0.062944,104820.0,104810.0,0.15836903]
[1737134171965,0.01526,104820.0,104810.0,0.51916903]
[1737134172271,0.01526,104820.0,104810.0,0.62356903]
[1737134175671,0.37606,104820.0,104810.0,0.1753398]
[1737134175871,0.37606,104820.0,104810.0,0.26276903]
[1737134178059,0.423744,104820.0,104810.0,0.26276903]
[1737134178673,0.37606,104820.0,104810.0,0.26276903]
[1737134186681,0.01526,104820.0,104810.0,0.26276903]
[1737134186882,0.01526,104820.0,104810.0,0.62356903]
[1737134187285,0.01526,104820.0,104810.0,0.71099826]
[1737134187585,0.3608,104840.0,104830.0,0.047679]
[1737134187773,0.51330256,104850.0,104840.0,0.047675]
[1737134187973,0.51330256,104850.0,104840.0,0.13510423]
[1737134188578,0.51503256,104850.0,104840.0,0.13510423]
[1737134188785,0.52265256,104850.0,104840.0,0.13510423]
[1737134191185,0.42408156,104850.0,104840.0,0.13510423]
[1737134191385,0.00935,104850.0,104840.0,0.58333346]
[1737134191584,0.58899823,104870.0,104860.0,0.047665]
[1737134191786,0.58899823,104870.0,104860.0,0.13509423]
[1737134191981,0.58899823,104870.0,104860.0,0.19019423]
[1737134192176,0.67334582,104870.0,104860.0,0.19019423]
[1737134192790,0.67536582,104870.0,104860.0,0.19019423]
[1737134193490,0.61929078,104870.0,104860.0,0.19019423]
[1737134195483,0.84711901,104870.0,104860.0,0.19019423]
[1737134197489,0.61929078,104870.0,104860.0,0.19019423]
[1737134198891,0.61929078,104870.0,104860.0,0.21348403]
[1737134199992,0.34592001,104870.0,104860.0,0.0232898]
[1737134200203,0.34592001,104870.0,104830.0,0.04910668]
[1737134200204,0.047673,104850.0,104830.0,0.04910668]
[1737134200492,0.3608,104840.0,104830.0,0.04910668]
[1737134200688,0.55190423,104840.0,104830.0,0.00143068]
[1737134200894,0.047679,104830.0,104820.0,0.103282]
[1737134201198,0.408479,104830.0,104820.0,0.12634493]
[1737134201690,0.3608,104830.0,104820.0,0.21377416]
[1737134202594,0.4168,104840.0,104820.0,0.66200339]
[1737134202797,0.4155,104860.0,104830.0,0.49590823]
[1737134202995,0.51477,104860.0,104840.0,0.13510023]
[1737134203201,0.3608,104850.0,104840.0,0.13510023]
[1737134203596,0.51477,104860.0,104850.0,0.04767]
[1737134203789,0.77124078,104860.0,104850.0,0.04767]
[1737134203988,0.77124078,104860.0,104850.0,0.13509923]
[1737134204186,0.77124078,104860.0,104850.0,0.04767]
[1737134204588,0.85867001,104860.0,104850.0,0.04767]
[1737134204789,0.8298211,104860.0,104830.0,0.150753]
[1737134205096,0.49590823,104840.0,104830.0,0.047679]
[1737134205789,0.54870823,104840.0,104830.0,0.047679]
[1737134206592,0.047679,104830.0,104820.0,0.07217488]
[1737134206793,0.461879,104830.0,104820.0,0.07217488]
[1737134207298,0.513379,104830.0,104820.0,0.07217488]
[1737134207994,0.60080823,104830.0,104800.0,0.1]
[1737134208185,0.49591723,104810.0,104800.0,0.16600389]
[1737134209000,0.408488,104810.0,104800.0,0.16600389]
[1737134209195,0.408484,104820.0,104810.0,0.047688]
[1737134209402,0.3608,104820.0,104810.0,0.13511723]
[1737134209595,0.3608,104820.0,104800.0,0.56654412]
[1737134209797,0.408485,104820.0,104800.0,0.61423512]
[1737134210495,0.408485,104820.0,104810.0,0.047688]
[1737134210703,0.3608,104820.0,104810.0,0.13511723]
[1737134210997,0.3608,104820.0,104810.0,0.29471723]
[1737134211198,0.408484,104820.0,104810.0,0.29471723]
[1737134211595,0.408484,104820.0,104810.0,0.3384128]
[1737134213501,0.408484,104820.0,104810.0,0.33241206]
[1737134214398,0.408484,104820.0,104810.0,0.20128726]
[1737134215705,0.408484,104820.0,104810.0,0.1596]
[1737134215897,0.047688,104810.0,104800.0,0.52680489]
[1737134216808,0.047688,104810.0,104800.0,0.65792969]
[1737134220503,0.047685,104820.0,104810.0,0.047686]
[1737134220703,0.047685,104820.0,104810.0,0.1788108]
[1737134221102,0.513381,104830.0,104820.0,0.047684]
[1737134221301,0.513381,104830.0,104820.0,0.1788088]
[1737134221812,0.513381,104830.0,104820.0,0.047684]
[1737134222515,0.047686,104820.0,104810.0,0.047686]
[1737134222811,0.408486,104820.0,104810.0,0.047686]
[1737134222996,0.408486,104820.0,104810.0,0.1788108]
[1737134223709,0.00143144,104840.0,104830.0,0.047679]
[1737134223909,0.00143144,104840.0,104830.0,0.5396038]
[1737134224109,0.00344144,104840.0,104830.0,0.5396038]
[1737134226507,0.20266674,104840.0,104830.0,0.5396038]
[1737134226908,0.11936674,104840.0,104830.0,0.5396038]
[1737134227516,0.11936674,104840.0,104830.0,0.55446336]
[1737134228518,0.58842187,104850.0,104830.0,0.55446336]
[1737134228519,0.3608,104850.0,104830.0,0.55446336]
[1737134228718,0.3608,104850.0,104840.0,0.1787998]
[1737134231510,0.408468,104860.0,104840.0,0.1987998]
[1737134231716,0.408468,104860.0,104850.0,0.1787948]
[1737134231919,0.408468,104860.0,104850.0,0.2315948]
[1737134232120,0.408468,104860.0,104850.0,0.10047]
[1737134232317,0.5395928,104860.0,104840.0,0.02]
[1737134232519,0.408467,104860.0,104850.0,0.04767]
[1737134233015,0.408467,104860.0,104850.0,0.1787948]
[1737134233420,0.408467,104860.0,104850.0,0.13502264]
[1737134234522,0.408467,104860.0,104850.0,0.04767]
[1737134234714,0.49581964,104860.0,104850.0,0.04767]
[1737134234914,0.408467,104860.0,104850.0,0.04767]
[1737134235820,0.66492733,104860.0,104850.0,0.04767]
[1737134236520,0.75227997,104860.0,104850.0,0.04767]
[1737134236825,0.66492733,104860.0,104850.0,0.04767]
[1737134237015,0.04767,104850.0,104840.0,0.067671]
[1737134237215,0.46147,104850.0,104840.0,0.067671]
[1737134237411,0.51297,104850.0,104840.0,0.15502364]
[1737134237620,0.4138,104850.0,104840.0,0.15502364]
[1737134237914,0.5887264,104850.0,104840.0,0.15502364]
[1737134239315,0.5887264,104850.0,104840.0,0.17004359]
[1737134243320,0.56030998,104850.0,104840.0,0.17004359]
[1737134244124,0.5887264,104850.0,104840.0,0.17004359]
[1737134246423,0.56039601,104850.0,104840.0,0.17004359]
[1737134247318,0.2279264,104850.0,104840.0,0.17004359]
[1737134247522,0.2279264,104850.0,104840.0,0.61819623]
[1737134248322,0.5887264,104860.0,104850.0,0.04767]
[1737134248632,0.5887264,104860.0,104850.0,0.22237528]
[1737134248825,0.5887264,104860.0,104850.0,0.27677528]
[1737134249129,0.5887264,104860.0,104850.0,0.33047528]
[1737134251619,0.67425152,104860.0,104850.0,0.33047528]
[1737134253024,0.67425152,104860.0,104850.0,0.24312264]
[1737134253225,0.67425152,104860.0,104850.0,0.13502264]
[1737134253720,0.67425152,104860.0,104850.0,0.22237528]
[1737134254037,0.67425152,104860.0,104850.0,0.13502264]
[1737134254225,0.67425152,104860.0,104850.0,0.22237528]
[1737134254430,0.67425152,104860.0,104850.0,0.13502264]
[1737134256529,0.67425152,104860.0,104850.0,0.04767]
[1737134256737,0.67425152,104860.0,104850.0,0.13502264]
[1737134258642,0.04767,104850.0,104840.0,0.08269295]
[1737134258829,0.63827528,104850.0,104840.0,0.02]
[1737134259033,0.63827528,104850.0,104810.0,0.96270339]
[1737134259034,0.047684,104820.0,104810.0,0.21887524]
[1737134259230,0.769284,104820.0,104810.0,0.21887524]
[1737134259931,1.02650548,104820.0,104810.0,0.04911675]
[1737134260128,1.02650548,104820.0,104810.0,0.13646939]
[1737134260733,1.02650548,104820.0,104810.0,0.15153741]
[1737134261437,1.11385812,104820.0,104810.0,0.06418477]
[1737134261633,1.02650548,104820.0,104810.0,0.06418477]
[1737134261831,1.02650548,104820.0,104810.0,0.15153741]
[1737134262033,1.08270548,104820.0,104810.0,0.06418477]
[1737134263131,1.08270548,104820.0,104810.0,0.00143075]
[1737134263328,1.12237412,104820.0,104800.0,0.23504464]
[1737134263532,0.521188,104810.0,104800.0,0.23504464]
[1737134263942,0.81931636,104810.0,104800.0,0.23504464]
[1737134264933,0.74924621,104810.0,104800.0,0.147692]
[1737134265735,0.83659885,104810.0,104790.0,0.05912223]
[1737134266040,0.3608,104800.0,104790.0,0.14647487]
[1737134266842,0.3608,104800.0,104790.0,0.16026264]
[1737134270445,0.49584564,104800.0,104790.0,0.07291]
[1737134270742,0.408493,104800.0,104790.0,0.07291]
[1737134270945,0.408493,104800.0,104790.0,0.16026264]
[1737134271146,0.3608,104800.0,104790.0,0.24761528]
[1737134271445,0.52119,104810.0,104800.0,0.047693]
[1737134271742,0.52119,104810.0,104800.0,0.13504564]
[1737134272839,0.72014833,104810.0,104800.0,0.13504564]
[1737134273542,0.67245833,104810.0,104800.0,0.13504564]
[1737134273745,0.4735,104810.0,104800.0,0.13504564]
[1737134274731,0.3608,104810.0,104800.0,0.13504564]
[1737134274931,0.3608,104810.0,104800.0,0.19264564]
[1737134275136,0.97709585,104820.0,104810.0,0.047688]
[1737134275332,0.51240985,104820.0,104810.0,0.13504064]
[1737134275748,0.51240985,104820.0,104810.0,0.22239328]
[1737134276247,0.25555833,104830.0,104820.0,0.047684]
[1737134276549,0.19895833,104830.0,104820.0,0.58318928]
[1737134277838,0.69266472,104840.0,104830.0,0.047679]
[1737134277839,0.46460651,104840.0,104830.0,0.047679]
[1737134278137,0.46460651,104840.0,104830.0,0.13503164]
[1737134279447,0.55195915,104840.0,104830.0,0.047679]
[1737134280743,0.46460651,104840.0,104830.0,0.047679]
[1737134280945,0.10380651,104840.0,104830.0,0.047679]
[1737134281143,0.82540651,104840.0,104830.0,0.047679]
[1737134281350,0.047685,104820.0,104810.0,0.047688]
[1737134281544,0.85663764,104820.0,104810.0,0.047688]
[1737134281859,0.85663764,104820.0,104800.0,0.06307929]
[1737134282145,0.66194064,104810.0,104800.0,0.06307929]
[1737134282351,0.574588,104810.0,104800.0,0.15043193]
[1737134282543,0.574588,104810.0,104800.0,0.06307929]
[1737134283253,0.574588,104810.0,104800.0,0.15043193]
[1737134283947,0.574588,104810.0,104800.0,0.06307929]
[1737134284150,0.3608,104820.0,104800.0,0.15043193]
[1737134284344,0.408484,104820.0,104810.0,0.13504064]
[1737134284949,0.3608,104820.0,104810.0,0.24634064]
[1737134285152,0.3608,104820.0,104810.0,0.30114064]
[1737134285354,0.4179,104830.0,104810.0,0.38849328]
[1737134285554,0.3608,104830.0,104820.0,0.22238928]
[1737134285753,0.645521,104830.0,104820.0,0.13503664]
[1737134286757,0.3608,104830.0,104820.0,0.13503664]
[1737134288061,0.04910651,104840.0,104820.0,0.49583664]
[1737134288260,0.00143151,104840.0,104830.0,0.13503164]
[1737134289451,0.04910651,104840.0,104830.0,0.13503164]
[1737134289852,0.00143151,104840.0,104830.0,0.13503164]
[1737134290160,0.48608734,104840.0,104830.0,0.13503164]
[1737134290360,0.48608734,104840.0,104830.0,0.49583164]
[1737134291452,0.48465583,104840.0,104830.0,0.49583164]
[1737134291648,0.05457433,104840.0,104830.0,0.58318428]
[1737134291855,0.32683004,104850.0,104840.0,0.047675]
[1737134292155,0.32683004,104850.0,104840.0,0.66052764]
[1737134292367,0.32683004,104850.0,104840.0,0.29972764]
[1737134292567,0.68763004,104850.0,104840.0,0.159075]
[1737134292863,0.73530004,104850.0,104840.0,0.159075]
[1737134293164,0.40847,104850.0,104840.0,0.159075]
[1737134293364,0.3608,104850.0,104840.0,0.159075]
[1737134293562,0.3608,104850.0,104840.0,0.24642764]
[1737134293954,0.3608,104850.0,104840.0,0.24615013]
[1737134294350,0.40847,104850.0,104840.0,0.04739749]
[1737134294556,0.55252264,104850.0,104840.0,0.04739749]
[1737134294756,0.61072264,104850.0,104840.0,0.04739749]
[1737134296059,0.52337,104850.0,104840.0,0.04739749]
[1737134296264,0.61072264,104850.0,104840.0,0.04739749]
[1737134296465,0.047679,104830.0,104820.0,0.06067241]
[1737134296669,0.49583164,104830.0,104820.0,0.06067241]
[1737134296880,0.51583164,104830.0,104820.0,0.06067241]
[1737134297076,0.428479,104830.0,104820.0,0.06067241]
[1737134297265,0.51583164,104830.0,104820.0,0.06067241]
[1737134297673,0.428479,104830.0,104820.0,0.14802505]
[1737134297882,0.3808,104830.0,104820.0,0.14802505]
[1737134299980,0.02,104830.0,104820.0,0.50882505]
[1737134300172,0.02,104830.0,104820.0,0.59617769]
[1737134300367,0.0567,104850.0,104840.0,0.047675]
[1737134300576,0.0567,104850.0,104840.0,0.13502764]
[1737134300786,0.77861752,104860.0,104850.0,0.04767]
[1737134301073,0.43781752,104860.0,104850.0,0.13502264]
[1737134301277,0.41781752,104860.0,104850.0,0.13502264]
[1737134301579,0.41781752,104860.0,104850.0,0.04767]
[1737134301776,0.37015152,104860.0,104850.0,0.13502264]
[1737134301981,0.31345152,104860.0,104850.0,0.13502264]
[1737134302576,0.31345152,104860.0,104850.0,0.04767]
[1737134302783,0.36111652,104860.0,104850.0,0.04767]
[1737134303080,0.31345152,104860.0,104850.0,0.13502264]
[1737134303281,0.26038539,104860.0,104850.0,0.13502264]
[1737134304275,0.1578138,104860.0,104850.0,0.13502264]
[1737134304476,0.55431653,104860.0,104850.0,0.13502264]
[1737134305276,0.32641823,104860.0,104850.0,0.13502264]
[1737134305680,0.32641823,104860.0,104850.0,0.14791459]
[1737134306586,1.06103825,104870.0,104860.0,0.047665]
[1737134309086,1.03245187,104870.0,104860.0,0.047665]
[1737134309276,1.11980451,104870.0,104860.0,0.047665]
[1737134310083,1.03245187,104870.0,104860.0,0.047665]
[1737134310484,1.11980451,104870.0,104860.0,0.047665]
[1737134314386,0.8920053,104870.0,104860.0,0.047665]
[1737134316980,0.90504393,104870.0,104860.0,0.047665]
[1737134317785,0.80465266,104870.0,104860.0,0.047665]
[1737134319083,0.519561,104870.0,104860.0,0.047665]
[1737134320188,0.83292117,104870.0,104860.0,0.047665]
[1737134320891,0.92027381,104870.0,104860.0,0.047665]
[1737134321392,0.55947381,104870.0,104860.0,0.047665]
[1737134321592,0.92027381,104870.0,104860.0,0.047665]
[1737134322991,0.047673,104850.0,104840.0,0.047671]
[1737134323201,0.49582564,104850.0,104840.0,0.047671]
[1737134323494,0.408473,104850.0,104840.0,0.047671]
[1737134323691,0.769273,104850.0,104840.0,0.047671]
[1737134323890,0.769273,104850.0,104840.0,0.13502364]
[1737134324490,0.769273,104850.0,104840.0,0.047671]
[1737134325694,0.789273,104850.0,104840.0,0.047671]
[1737134326195,0.789273,104850.0,104840.0,0.06067933]
[1737134326797,0.843573,104850.0,104840.0,0.06067933]
[1737134327989,0.482773,104850.0,104840.0,0.06067933]
[1737134329598,0.73974618,104850.0,104840.0,0.06067933]
[1737134330895,0.37894618,104850.0,104840.0,0.06067933]
[1737134331195,0.27697318,104850.0,104840.0,0.48497495]
[1737134331498,0.27697318,104850.0,104840.0,0.57232759]
[1737134331697,0.26846038,104850.0,104840.0,0.57232759]
[1737134331897,0.0114872,104850.0,104840.0,0.57232759]
[1737134332099,0.0114872,104850.0,104840.0,0.48497495]
[1737134333091,0.21142819,104850.0,104840.0,0.48497495]
[1737134335396,0.23999119,104850.0,104840.0,0.48497495]
[1737134337506,0.43989846,104850.0,104840.0,0.48497495]
[1737134339207,0.43989846,104850.0,104840.0,0.48485434]
[1737134339406,0.0114872,104850.0,104840.0,0.57220698]
[1737134339603,0.71369238,104860.0,104850.0,0.04767]
[1737134339802,0.71369238,104860.0,104850.0,0.58317528]
[1737134340405,0.48518839,104860.0,104850.0,0.58317528]
[1737134341404,0.28528112,104860.0,104850.0,0.58317528]
[1737134341707,0.25856585,104860.0,104850.0,0.58317528]
[1737134342408,0.36859287,104860.0,104850.0,0.58317528]
[1737134343413,0.31336017,104860.0,104850.0,0.58317528]
[1737134345016,0.28848084,104860.0,104850.0,0.58317528]
[1737134345205,0.26456512,104860.0,104850.0,0.58317528]
[1737134345906,0.52124018,104860.0,104850.0,0.58317528]
[1737134347815,0.52124018,104860.0,104850.0,0.49582264]
[1737134349119,0.72079237,104860.0,104850.0,0.49582264]
[1737134352116,0.26456512,104860.0,104850.0,0.49582264]
[1737134356114,0.26456512,104860.0,104850.0,0.58317528]
[1737134356521,0.26456512,104860.0,104850.0,0.64012628]
[1737134356718,0.12970112,104860.0,104850.0,0.64012628]
[1737134356917,0.16302877,104860.0,104850.0,0.64012628]
[1737134357220,0.05917477,104860.0,104850.0,2.14012628]
[1737134357520,0.05917477,104860.0,104850.0,0.64012628]
[1737134357922,0.19955624,104860.0,104850.0,0.64012628]
[1737134358315,0.19955624,104860.0,104850.0,0.49567364]
[1737134358628,0.45180888,104860.0,104850.0,0.408321]
[1737134358917,0.36445624,104860.0,104850.0,0.408321]
[1737134359229,0.36445624,104860.0,104850.0,0.49567364]
[1737134363419,0.1649,104860.0,104850.0,0.49567364]
[1737134368542,0.66513406,104880.0,104850.0,0.58302628]
[1737134368845,0.82953406,104880.0,104870.0,0.047661]
[1737134369442,0.572859,104880.0,104870.0,0.047661]
[1737134370331,0.212059,104880.0,104870.0,0.047661]
[1737134370536,0.1644,104880.0,104870.0,0.49581364]
[1737134370734,0.1644,104880.0,104870.0,0.13501364]
[1737134372147,0.1644,104880.0,104870.0,0.047661]
[1737134372538,0.1644,104880.0,104870.0,0.13501364]
[1737134372739,0.1644,104880.0,104870.0,0.047661]
[1737134372946,0.5252,104880.0,104870.0,0.047661]
[1737134374647,0.1644,104880.0,104870.0,0.408461]
[1737134376743,0.1644,104880.0,104870.0,0.49581364]
[1737134376942,0.047662,104870.0,104860.0,0.047662]
[1737134377151,0.08735264,104870.0,104860.0,0.047662]
[1737134377542,0.66021164,104880.0,104870.0,0.047661]
[1737134377947,0.68021164,104880.0,104870.0,0.047661]